bitfinex/quotes_BTCUSD_20250127
["timestamp","ask_amount","ask_price","bid_price","bid_amount"]
[1737966132503,0.00864413,99265.0,99264.0,0.15126014]
[1737966132805,0.01164413,99265.0,99264.0,0.39860743]
[1737966133011,0.00664413,99265.0,99264.0,0.39860743]
[1737966133369,0.01164413,99265.0,99264.0,0.39860743]
[1737966133565,0.00664413,99265.0,99264.0,0.39860743]
[1737966133968,0.00664413,99265.0,99264.0,0.40160743]
[1737966134179,0.00664413,99265.0,99264.0,0.39860743]
[1737966134371,0.00664413,99265.0,99264.0,0.40893758]
[1737966134600,0.00364413,99265.0,99264.0,0.41193758]
[1737966135043,0.00364413,99265.0,99264.0,0.40893758]
[1737966136249,0.00364413,99265.0,99264.0,0.41193758]
[1737966136577,0.00364413,99265.0,99264.0,0.40893758]
[1737966136785,0.00364413,99265.0,99264.0,0.41193758]
[1737966137178,0.00364413,99265.0,99264.0,0.40893758]
[1737966137455,0.0013508,99265.0,99264.0,0.43493758]
[1737966137626,0.0013508,99265.0,99264.0,0.51233758]
[1737966138204,0.0013508,99265.0,99264.0,0.52902498]
[1737966139057,0.040304,99302.0,99301.0,0.151055]
[1737966139298,0.201368,99321.0,99285.0,0.00100706]
[1737966139502,0.00516154,99302.0,99289.0,0.15]
[1737966139830,0.040301,99310.0,99284.0,0.0099561]
[1737966140041,0.09734729,99309.0,99276.0,0.0098866]
[1737966140244,0.151045,99308.0,99276.0,0.0098866]
[1737966140395,0.151067,99294.0,99286.0,0.201436]
[1737966140593,0.09734729,99307.0,99286.0,0.201436]
[1737966140800,0.00516154,99293.0,99272.0,0.351465]
[1737966141005,0.00516154,99293.0,99264.0,0.08973494]
[1737966141006,0.151065,99295.0,99275.0,0.15]
[1737966141239,0.00516154,99292.0,99279.0,0.15]
[1737966141461,0.151055,99302.0,99292.0,0.151068]
[1737966141680,0.201395,99307.0,99276.0,0.003]
[1737966141891,0.15105,99305.0,99298.0,0.151058]
[1737966142098,0.151052,99303.0,99292.0,0.0099878]
[1737966142261,0.151046,99307.0,99293.0,0.201424]
[1737966142463,0.151046,99307.0,99285.0,0.0166]
[1737966142464,0.0004936,99309.0,99304.0,0.15105]
[1737966142668,0.0004936,99309.0,99293.0,0.0099732]
[1737966142842,0.0004936,99309.0,99306.0,0.151047]
[1737966143044,0.0004936,99309.0,99294.0,0.15]
[1737966143301,0.0004936,99309.0,99308.0,0.151045]
[1737966143541,0.0004936,99309.0,99308.0,0.301045]
[1737966144457,0.0024936,99309.0,99308.0,0.301045]
[1737966144862,0.0004936,99309.0,99308.0,0.301045]
[1737966145061,0.0024936,99309.0,99308.0,0.301045]
[1737966145327,0.151047,99307.0,99300.0,0.2]
[1737966145481,0.0004936,99309.0,99305.0,0.151048]
[1737966145687,0.0004936,99309.0,99300.0,0.2]
[1737966145688,0.0014936,99309.0,99300.0,0.2]
[1737966145885,0.0024936,99309.0,99300.0,0.2]
[1737966146201,0.0014936,99309.0,99308.0,0.151045]
[1737966147202,0.0004936,99309.0,99300.0,0.2]
[1737966147506,0.151045,99308.0,99301.0,0.151055]
[1737966147699,0.1700776,99309.0,99300.0,0.201]
[1737966147904,0.201397,99306.0,99300.0,0.2]
[1737966148108,0.151055,99301.0,99300.0,0.2]
[1737966148716,0.25365798,99301.0,99300.0,0.2]
[1737966148912,0.25365798,99301.0,99300.0,0.201]
[1737966149219,0.25365798,99301.0,99300.0,0.2]
[1737966150172,2.29201628,99301.0,99300.0,0.2]
[1737966150377,2.33355628,99301.0,99300.0,0.1544464]
[1737966150620,2.3533158,99301.0,99300.0,0.05009727]
[1737966150825,2.3523158,99301.0,99300.0,0.05009727]
[1737966151027,2.3989158,99301.0,99300.0,0.02995627]
[1737966151364,2.3352575,99301.0,99300.0,2.7e-07]
[1737966151570,2.3352575,99301.0,99276.0,0.08375189]
[1737966151571,0.174092,99277.0,99276.0,0.08375189]
[1737966151801,0.174092,99277.0,99276.0,0.09369439]
[1737966151802,2.06013929,99277.0,99276.0,0.09369439]
[1737966152033,2.06013929,99277.0,99276.0,0.08375189]
[1737966152240,0.01,99272.0,99224.0,0.01656]
[1737966152439,0.173,99276.0,99224.0,0.01656]
[1737966152440,0.28145729,99265.0,99224.0,0.01656]
[1737966152651,0.27145729,99265.0,99226.0,0.151169]
[1737966152852,0.28656489,99265.0,99225.0,0.01005508]
[1737966153205,0.28656489,99265.0,99226.0,0.0098064]
[1737966153389,0.33534588,99265.0,99226.0,0.0098064]
[1737966153793,2.26878574,99265.0,99264.0,3.6e-07]
[1737966153999,2.26878574,99265.0,99247.0,1.5e-07]
[1737966154000,0.370736,99248.0,99247.0,1.5e-07]
[1737966154205,0.151151,99238.0,99189.0,0.201634]
[1737966154404,0.24849829,99238.0,99193.0,0.01005811]
[1737966154632,0.25360589,99238.0,99193.0,0.01005811]
[1737966154879,0.25360589,99238.0,99188.0,0.0099771]
[1737966154880,1.99650589,99238.0,99188.0,0.0099771]
[1737966155308,1.99650589,99238.0,99193.0,0.201625]
[1737966155626,1.99650589,99238.0,99237.0,0.00044529]
[1737966155835,1.98316884,99238.0,99237.0,0.00044529]
[1737966156133,0.48202432,99238.0,99237.0,0.00044529]
[1737966156344,0.37468859,99238.0,99237.0,0.00044529]
[1737966156588,0.52583959,99238.0,99237.0,0.00044529]
[1737966156968,0.57440589,99238.0,99237.0,0.00044529]
[1737966157173,0.57740589,99238.0,99237.0,0.00044529]
[1737966157600,0.4800586,99238.0,99237.0,0.00044529]
[1737966158153,0.58340589,99238.0,99237.0,0.00144529]
[1737966158361,0.4860586,99238.0,99237.0,0.00144529]
[1737966158575,0.4860586,99238.0,99237.0,0.00044529]
[1737966158576,0.57740589,99238.0,99237.0,0.00044529]
[1737966158791,0.4790586,99238.0,99237.0,0.00044529]
[1737966158999,0.4800586,99238.0,99237.0,0.00044529]
[1737966159212,0.4780586,99238.0,99237.0,0.00044529]
[1737966159414,0.4830586,99238.0,99237.0,0.00044529]
[1737966159629,0.57940589,99238.0,99237.0,0.00044529]
[1737966159848,0.58240589,99238.0,99237.0,0.00044529]
[1737966160289,0.57940589,99238.0,99237.0,0.00044529]
[1737966160499,0.59794589,99238.0,99237.0,0.00044529]
[1737966160704,0.59494589,99238.0,99237.0,0.00044529]
[1737966160915,0.4975986,99238.0,99237.0,0.00044529]
[1737966161188,0.5025986,99238.0,99237.0,0.00044529]
[1737966161436,0.4975986,99238.0,99237.0,0.00044529]
[1737966161682,0.60094589,99238.0,99237.0,0.00044529]
[1737966161922,1.45594589,99238.0,99237.0,0.00044529]
[1737966162157,1.47094589,99238.0,99237.0,0.00044529]
[1737966162385,1.57213978,99238.0,99237.0,0.00044529]
[1737966162588,1.46603978,99238.0,99237.0,0.00044529]
[1737966163462,1.48173217,99238.0,99237.0,0.00044529]
[1737966163840,2.04382034,99238.0,99237.0,0.00044529]
[1737966164070,2.47122034,99238.0,99237.0,2.8e-07]
[1737966164272,2.47122034,99238.0,99217.0,0.00029673]
[1737966164273,0.151182,99218.0,99217.0,0.00029673]
[1737966164444,1.43432929,99218.0,99217.0,0.00014804]
[1737966164652,1.43915449,99218.0,99217.0,0.00014804]
[1737966165531,1.28997249,99218.0,99178.0,0.00029736]
[1737966165740,0.151232,99186.0,99178.0,0.00079185]
[1737966165953,0.201596,99208.0,99178.0,0.00079185]
[1737966166064,0.151226,99189.0,99180.0,0.151239]
[1737966166281,0.0048252,99185.0,99180.0,0.15]
[1737966166497,0.201634,99190.0,99180.0,0.15]
[1737966166742,0.1560592,99184.0,99180.0,0.15]
[1737966166881,0.201604,99204.0,99180.0,0.15]
[1737966167080,0.0048252,99183.0,99182.0,0.301237]
[1737966167294,0.15122,99194.0,99184.0,0.151232]
[1737966167507,0.01869239,99203.0,99182.0,0.15]
[1737966167763,0.01869239,99203.0,99178.0,0.00079185]
[1737966167764,0.201631,99191.0,99178.0,0.00079185]
[1737966167968,0.20163,99192.0,99182.0,0.1598064]
[1737966168169,0.151226,99190.0,99182.0,0.3110424]
[1737966168315,0.09734729,99202.0,99182.0,0.15]
[1737966168518,0.0048252,99189.0,99184.0,0.15]
[1737966168893,0.09734729,99202.0,99184.0,0.15]
[1737966168894,0.0048252,99188.0,99187.0,0.151229]
[1737966169098,0.0048252,99188.0,99184.0,0.15]
[1737966169307,0.09734729,99202.0,99184.0,0.15]
[1737966169509,0.09734729,99202.0,99182.0,0.0098541]
[1737966169510,0.151235,99183.0,99182.0,0.0098541]
[1737966169690,0.151231,99186.0,99182.0,0.0108541]
[1737966169841,0.15597184,99183.0,99182.0,0.001]
[1737966170051,0.151241,99179.0,99178.0,0.00079185]
[1737966170260,0.24858829,99179.0,99178.0,0.00079185]
[1737966170739,0.27179927,99179.0,99178.0,0.00079185]
[1737966171143,0.28212651,99179.0,99178.0,0.00079185]
[1737966171560,1.52646906,99179.0,99178.0,0.00079185]
[1737966171821,1.50638063,99179.0,99178.0,0.00079185]
[1737966172022,1.50738063,99179.0,99178.0,0.00079185]
[1737966172351,1.50938063,99179.0,99178.0,0.00079185]
[1737966172739,1.50738063,99179.0,99178.0,0.00079185]
[1737966172959,1.50838063,99179.0,99178.0,0.00079185]
[1737966173376,1.49805339,99179.0,99178.0,0.00079185]
[1737966173709,1.49805339,99179.0,99150.0,0.00029673]
[1737966173710,0.151263,99165.0,99150.0,0.00029673]
[1737966173926,0.151263,99165.0,99164.0,0.00154579]
[1737966174127,0.00452493,99165.0,99164.0,0.00154579]
[1737966174505,0.201676,99169.0,99164.0,0.00154579]
[1737966174710,0.00452493,99165.0,99164.0,0.00154579]
[1737966174963,0.151258,99168.0,99164.0,0.00154579]
[1737966175105,0.00452493,99165.0,99164.0,0.00154579]
[1737966175312,0.002,99165.0,99164.0,0.15280879]
[1737966175702,0.040359,99167.0,99164.0,0.15280879]
[1737966175907,0.040359,99167.0,99164.0,0.00154579]
[1737966176107,0.003,99165.0,99164.0,0.00154579]
[1737966176516,0.002,99165.0,99164.0,0.00154579]
[1737966176719,0.002,99165.0,99164.0,0.15280979]
[1737966177138,0.002,99165.0,99164.0,0.43200979]
[1737966177319,0.001,99167.0,99166.0,0.301261]
[1737966179098,0.029852,99176.0,99175.0,0.301247]
[1737966179304,0.01854,99179.0,99178.0,0.151243]
[1737966179511,0.01854,99179.0,99178.0,0.39859029]
[1737966179720,0.01854,99179.0,99178.0,0.42159029]
[1737966180310,0.01854,99179.0,99178.0,0.39859029]
[1737966180544,0.01854,99179.0,99178.0,0.301243]
[1737966181369,0.03729017,99179.0,99178.0,0.42359029]
[1737966181570,0.01875017,99179.0,99178.0,0.42159029]
[1737966181776,0.01875017,99179.0,99178.0,0.55079029]
[1737966181978,0.01875017,99179.0,99178.0,0.55179029]
[1737966182197,0.01875017,99179.0,99178.0,0.57095752]
[1737966182369,0.02986533,99198.0,99197.0,0.301214]
[1737966182798,0.201565,99224.0,99204.0,0.15]
[1737966182799,0.151193,99211.0,99204.0,0.15]
[1737966183075,0.040337,99204.0,99202.0,0.15]
[1737966183328,0.040337,99204.0,99203.0,0.151205]
[1737966183829,0.04083018,99204.0,99203.0,0.151205]
[1737966184101,0.00049318,99204.0,99203.0,0.151205]
[1737966184321,0.0451325,99204.0,99203.0,0.151205]
[1737966184722,0.0491325,99204.0,99203.0,0.151205]
[1737966185513,0.0471325,99204.0,99203.0,0.151205]
[1737966185730,0.0345256,99204.0,99203.0,0.151205]
[1737966185887,0.0365256,99204.0,99203.0,0.151205]
[1737966186768,0.0365256,99204.0,99203.0,0.27155229]
[1737966186939,0.0365256,99204.0,99203.0,0.50275229]
[1737966187342,0.0365256,99204.0,99203.0,0.405405]
[1737966187877,0.0365256,99204.0,99203.0,0.382405]
[1737966188077,0.00249318,99204.0,99203.0,0.301205]
[1737966188955,0.00049318,99204.0,99203.0,0.301205]
[1737966190414,0.00049318,99204.0,99203.0,0.42155229]
[1737966190995,0.00049318,99204.0,99203.0,0.15]
[1737966191195,0.00049318,99204.0,99196.0,0.151214]
[1737966191423,0.00049318,99204.0,99195.0,0.201623]
[1737966191676,0.00049318,99204.0,99203.0,0.151205]
[1737966191803,0.00063488,99204.0,99203.0,0.151205]
[1737966194051,0.00063488,99204.0,99203.0,0.301205]
[1737966194257,0.00063488,99204.0,99203.0,0.324205]
[1737966198908,0.00063488,99204.0,99203.0,0.301205]
[1737966199681,0.00063488,99204.0,99203.0,0.15]
[1737966199807,0.00063488,99204.0,99194.0,0.0098474]
[1737966200019,0.151217,99195.0,99194.0,0.0098474]
[1737966200219,0.151222,99192.0,99183.0,0.151235]
[1737966200444,0.00063488,99204.0,99182.0,0.0099481]
[1737966200708,0.151205,99203.0,99196.0,0.151214]
[1737966200885,0.151205,99203.0,99184.0,0.15]
[1737966200886,0.01877672,99203.0,99199.0,0.151211]
[1737966201211,0.01877672,99203.0,99202.0,0.151206]
[1737966201212,0.03731672,99203.0,99202.0,0.151206]
[1737966201342,0.03731672,99203.0,99202.0,0.301206]
[1737966201906,0.01854,99203.0,99202.0,0.301206]
[1737966202862,0.01854,99203.0,99202.0,0.4317241]
[1737966203760,0.02054,99203.0,99202.0,0.4317241]
[1737966204225,0.01854,99203.0,99202.0,0.301206]
[1737966205176,0.01854,99203.0,99202.0,0.42155329]
[1737966205612,0.01854,99203.0,99202.0,0.42455329]
[1737966205818,0.01854,99203.0,99202.0,0.42555329]
[1737966206322,0.01854,99203.0,99202.0,0.42455329]
[1737966206704,0.01854,99203.0,99202.0,0.42555329]
[1737966207124,0.01854,99203.0,99202.0,0.42255329]
[1737966207504,0.01854,99203.0,99202.0,0.42355329]
[1737966207706,0.01854,99203.0,99202.0,0.42255329]
[1737966207915,0.01854,99203.0,99202.0,0.325206]
[1737966208121,0.01854,99203.0,99202.0,0.328206]
[1737966208805,0.01854,99203.0,99202.0,0.324206]
[1737966209126,0.01854,99203.0,99202.0,0.301206]
[1737966211012,0.01854,99203.0,99202.0,0.42455329]
[1737966211215,0.01854,99203.0,99202.0,0.42155329]
[1737966211569,0.01854,99203.0,99202.0,0.42255329]
[1737966211779,0.00063488,99204.0,99203.0,0.324205]
[1737966211992,0.00063488,99204.0,99203.0,0.42155229]
[1737966212811,0.00063488,99204.0,99203.0,0.45260022]
[1737966213023,0.00063488,99204.0,99203.0,0.42155229]
[1737966213473,0.00063488,99204.0,99203.0,0.45260861]
[1737966214359,0.00063488,99204.0,99203.0,0.45460861]
[1737966214551,0.00063488,99204.0,99203.0,0.4240286]
[1737966214761,0.00063488,99204.0,99203.0,0.4250286]
[1737966215095,0.00063488,99204.0,99203.0,0.45609157]
[1737966215293,0.00063488,99204.0,99203.0,0.4250286]
[1737966216319,0.00063488,99204.0,99203.0,0.45612088]
[1737966217200,0.0001417,99217.0,99216.0,0.301185]
[1737966217469,0.0001417,99217.0,99216.0,0.45262457]
[1737966217714,0.0001417,99217.0,99216.0,0.95531461]
[1737966218554,0.0001417,99217.0,99216.0,0.97744028]
[1737966219178,0.01884827,99252.0,99223.0,0.01]
[1737966219392,0.01884827,99252.0,99251.0,0.151131]
[1737966219518,0.01899624,99252.0,99251.0,0.151131]
[1737966220115,0.00014797,99252.0,99251.0,0.151131]
[1737966220791,0.00014797,99252.0,99243.0,0.201524]
[1737966220792,0.00014797,99252.0,99242.0,0.2113444]
[1737966221037,0.00014797,99252.0,99242.0,0.2113434]
[1737966221289,0.01868797,99252.0,99248.0,0.151136]
[1737966221554,0.01968797,99252.0,99247.0,0.151137]
[1737966221843,0.003,99252.0,99244.0,0.151142]
[1737966222082,0.003,99252.0,99242.0,0.0098174]
[1737966222083,0.004,99252.0,99242.0,0.0098174]
[1737966222317,0.040324,99251.0,99245.0,0.15]
[1737966222551,0.040324,99251.0,99245.0,0.30114]
[1737966222764,0.040324,99251.0,99245.0,0.15]
[1737966222932,0.040324,99251.0,99241.0,0.0098919]
[1737966222933,0.151145,99242.0,99241.0,0.0098919]
[1737966223162,0.0769,99250.0,99241.0,0.0098919]
[1737966223163,0.201515,99248.0,99241.0,0.01003987]
[1737966223344,0.151145,99242.0,99241.0,0.00014797]
[1737966224238,0.24849229,99242.0,99241.0,0.00014797]
[1737966224792,0.25049229,99242.0,99241.0,0.00014797]
[1737966225613,0.24949229,99242.0,99241.0,0.00014797]
[1737966225730,0.26165898,99242.0,99241.0,0.00014797]
[1737966226644,0.26065898,99242.0,99241.0,0.00014797]
[1737966227116,0.26165898,99242.0,99241.0,0.00014797]
[1737966227314,0.25880068,99242.0,99241.0,0.00014797]
[1737966227454,0.26080068,99242.0,99241.0,0.00014797]
[1737966227654,0.26580068,99242.0,99241.0,0.00014797]
[1737966227884,0.26380068,99242.0,99241.0,0.00014797]
[1737966228086,0.25880068,99242.0,99241.0,0.00014797]
[1737966228502,0.26180068,99242.0,99241.0,0.00014797]
[1737966229749,0.26180068,99242.0,99241.0,0.00062428]
[1737966231585,0.0081417,99242.0,99241.0,0.00062428]
[1737966231813,0.0266817,99242.0,99241.0,0.00062428]
[1737966232037,0.0266817,99242.0,99241.0,0.15177128]
[1737966232244,0.0266817,99242.0,99241.0,0.30177128]
[1737966232859,0.0266817,99242.0,99241.0,0.30177127]
[1737966233070,0.0266817,99242.0,99241.0,0.42211856]
[1737966233490,0.0216817,99242.0,99241.0,0.31199553]
[1737966233699,0.0216817,99242.0,99241.0,0.30177127]
[1737966233906,0.0216817,99242.0,99241.0,0.15062427]
[1737966234116,0.0186817,99242.0,99241.0,0.30177127]
[1737966234334,0.0206817,99242.0,99241.0,0.30177127]
[1737966234548,0.0206817,99242.0,99241.0,0.30277127]
[1737966234772,0.0186817,99242.0,99241.0,0.42311856]
[1737966234976,0.0186817,99242.0,99241.0,0.42311855]
[1737966235635,0.0186817,99242.0,99241.0,0.30277126]
[1737966237162,0.0186817,99242.0,99241.0,0.42311855]
[1737966237351,0.0186817,99242.0,99241.0,0.50551855]
[1737966237617,0.0186817,99242.0,99241.0,0.31921126]
[1737966238074,0.0186817,99242.0,99241.0,0.30277126]
[1737966238279,0.0186817,99242.0,99241.0,0.30177125]
[1737966238495,0.0186817,99242.0,99241.0,0.30577125]
[1737966238675,0.0196817,99242.0,99241.0,0.31277125]
[1737966238883,0.0196817,99242.0,99241.0,0.31306861]
[1737966239093,0.0196817,99242.0,99241.0,0.30906861]
[1737966240296,0.0196817,99242.0,99241.0,0.31006861]
[1737966240505,0.0186817,99242.0,99241.0,0.00192161]
[1737966240704,0.1698267,99242.0,99241.0,0.00492161]
[1737966240897,0.0121817,99242.0,99241.0,0.00392161]
[1737966241107,0.0121817,99242.0,99241.0,0.15506861]
[1737966241368,0.0121817,99242.0,99241.0,0.00392161]
[1737966241570,0.0121817,99242.0,99241.0,0.00092161]
[1737966241998,0.0131817,99242.0,99241.0,0.00192161]
[1737966242433,0.0131817,99242.0,99241.0,0.00092161]
[1737966243241,0.1643267,99242.0,99241.0,0.00092161]
[1737966243623,0.26167399,99242.0,99241.0,0.00092161]
[1737966243825,0.26267399,99242.0,99241.0,0.00092161]
[1737966244256,0.26267399,99242.0,99241.0,0.00082161]
[1737966244459,0.26067399,99242.0,99241.0,0.00082161]
[1737966244708,0.81360587,99242.0,99241.0,0.00082161]
[1737966245108,0.83352031,99242.0,99241.0,0.00082161]
[1737966245317,0.83352031,99242.0,99241.0,0.00182161]
[1737966245549,0.83352031,99242.0,99241.0,0.00082161]
[1737966246594,1.21372031,99242.0,99241.0,0.00082161]
[1737966246914,0.01,99230.0,99168.0,0.0461]
[1737966247194,0.151223,99191.0,99190.0,0.0099095]
[1737966247393,0.15124,99180.0,99171.0,0.0164]
[1737966247595,0.15124,99180.0,99166.0,0.201681]
[1737966247783,0.24858729,99180.0,99171.0,0.0098107]
[1737966248020,0.5341,99189.0,99170.0,0.14893]
[1737966248232,0.09734729,99188.0,99180.0,0.151239]
[1737966248440,0.151231,99186.0,99179.0,0.00429757]
[1737966248639,0.09734729,99188.0,99179.0,0.00079075]
[1737966248838,0.09734729,99188.0,99179.0,0.00179075]
[1737966249163,0.09734729,99188.0,99179.0,0.00079075]
[1737966249359,0.15123,99187.0,99179.0,0.15203175]
[1737966249561,0.15124,99180.0,99179.0,0.00079075]
[1737966249777,0.151238,99182.0,99179.0,0.00079075]
[1737966249992,0.151236,99183.0,99179.0,0.00079075]
[1737966250196,0.09834729,99188.0,99179.0,0.00079075]
[1737966250197,0.201641,99186.0,99179.0,0.00079075]
[1737966250397,0.151235,99183.0,99179.0,0.00079075]
[1737966250617,0.24858029,99185.0,99179.0,0.00079075]
[1737966250817,0.09734729,99185.0,99179.0,0.00079075]
[1737966251019,0.151234,99184.0,99179.0,0.00079075]
[1737966251486,0.15124,99180.0,99179.0,0.00079075]
[1737966251651,0.29899029,99185.0,99179.0,0.00079075]
[1737966251652,0.09734729,99185.0,99179.0,0.00079075]
[1737966252006,0.09834729,99185.0,99179.0,0.00079075]
[1737966252134,0.001,99184.0,99179.0,0.00079075]
[1737966252355,0.001,99184.0,99181.0,0.151237]
[1737966252583,0.002,99184.0,99179.0,0.15203175]
[1737966252783,0.001,99184.0,99180.0,0.151239]
[1737966252991,0.001,99184.0,99183.0,0.151235]
[1737966253416,0.001,99184.0,99183.0,0.42158229]
[1737966254063,0.001,99184.0,99183.0,0.44225158]
[1737966254302,0.3208,99219.0,99218.0,0.151182]
[1737966254501,0.5341,99223.0,99222.0,0.151176]
[1737966254705,0.5341,99223.0,99222.0,0.301176]
[1737966254861,0.0123233,99242.0,99241.0,0.151147]
[1737966255514,0.01247133,99242.0,99241.0,0.151147]
[1737966256073,0.01347133,99242.0,99241.0,0.151147]
[1737966257307,0.01247133,99242.0,99241.0,0.151147]
[1737966257531,0.01247133,99242.0,99241.0,0.152147]
[1737966257781,0.01247133,99242.0,99241.0,0.39949429]
[1737966257973,0.01247133,99242.0,99241.0,0.39849429]
[1737966258313,0.01247133,99242.0,99241.0,0.39949429]
[1737966258514,0.01247133,99242.0,99241.0,0.39849429]
[1737966258935,0.01247133,99242.0,99241.0,0.40049429]
[1737966259447,0.01247133,99242.0,99241.0,0.41071414]
[1737966260411,0.01247133,99242.0,99241.0,0.51071414]
[1737966261173,0.01247133,99242.0,99241.0,0.50871414]
[1737966261388,0.01247133,99242.0,99241.0,0.51071414]
[1737966261583,0.01247133,99242.0,99241.0,0.51671414]
[1737966261790,0.01247133,99242.0,99241.0,0.51071414]
[1737966262010,0.01247133,99242.0,99241.0,0.50871414]
[1737966262168,0.01247133,99242.0,99241.0,0.51771414]
[1737966262808,0.01247133,99242.0,99241.0,0.50871414]
[1737966263009,0.01247133,99242.0,99241.0,0.52507414]
[1737966263210,0.01247133,99242.0,99241.0,0.32772685]
[1737966263449,0.01247133,99242.0,99241.0,0.33172685]
[1737966263823,0.01247133,99242.0,99241.0,0.32772685]
[1737966264655,0.01247133,99242.0,99241.0,0.32972685]
[1737966264893,0.01247133,99242.0,99241.0,0.33572685]
[1737966265086,0.01247133,99242.0,99241.0,0.159147]
[1737966265277,0.01247133,99242.0,99241.0,0.008]
[1737966265522,0.01247133,99242.0,99241.0,0.002]
[1737966265859,0.01247133,99242.0,99241.0,0.159147]
[1737966266078,0.01247133,99242.0,99241.0,0.153147]
[1737966266293,0.01247133,99242.0,99241.0,0.151147]
[1737966266727,0.01247133,99242.0,99241.0,0.153147]
[1737966267262,0.01247133,99242.0,99241.0,0.151147]
[1737966267627,0.01247133,99242.0,99241.0,0.153147]
[1737966267943,0.01247133,99242.0,99241.0,0.301147]
[1737966268146,0.151159,99233.0,99232.0,0.0099509]
[1737966268348,0.86260629,99233.0,99232.0,0.0099509]
[1737966268550,0.86260629,99233.0,99191.0,0.01026573]
[1737966268551,0.77949454,99233.0,99191.0,0.01026573]
[1737966268756,0.22338637,99220.0,99189.0,0.1611731]
[1737966268933,0.151207,99202.0,99189.0,0.1611731]
[1737966269134,0.151205,99204.0,99193.0,0.15]
[1737966269517,0.09734729,99203.0,99185.0,0.00029757]
[1737966269651,0.20161,99201.0,99193.0,0.0099544]
[1737966269854,0.01,99228.0,99185.0,0.00029757]
[1737966269855,0.5341,99202.0,99192.0,0.15]
[1737966270242,0.63144729,99202.0,99185.0,0.00029757]
[1737966270457,0.63144729,99202.0,99192.0,0.0098996]
[1737966270629,0.151218,99195.0,99185.0,0.00029757]
[1737966270864,0.63144729,99202.0,99185.0,0.00229757]
[1737966270865,0.151215,99197.0,99185.0,0.00229757]
[1737966271068,0.63144729,99202.0,99185.0,0.00229757]
[1737966271266,0.63144729,99202.0,99189.0,0.003]
[1737966271475,0.20161,99201.0,99189.0,0.003]
[1737966271688,0.151218,99195.0,99189.0,0.003]
[1737966272097,0.151214,99197.0,99185.0,0.00079075]
[1737966272299,0.151215,99196.0,99187.0,0.15]
[1737966272501,0.151219,99194.0,99187.0,0.15]
[1737966272712,0.151216,99196.0,99187.0,0.15]
[1737966272884,0.20161,99201.0,99187.0,0.15]
[1737966273091,0.151212,99199.0,99189.0,0.151]
[1737966273522,0.20161,99201.0,99189.0,0.151]
[1737966273728,0.20161,99201.0,99189.0,0.1609766]
[1737966273729,0.151209,99200.0,99189.0,0.1609766]
[1737966273932,0.63144729,99202.0,99189.0,0.1609766]
[1737966274134,0.151214,99197.0,99189.0,0.1609766]
[1737966274341,0.151211,99199.0,99189.0,0.1609766]
[1737966274544,0.151211,99199.0,99189.0,0.3112016]
[1737966274697,0.5341,99202.0,99191.0,0.201631]
[1737966274941,0.5341,99202.0,99201.0,0.151208]
[1737966275116,0.5341,99202.0,99189.0,0.0099766]
[1737966275117,0.5341,99202.0,99193.0,0.201625]
[1737966275322,0.5341,99202.0,99191.0,0.15]
[1737966275734,0.5341,99202.0,99193.0,0.15]
[1737966275943,0.5342417,99202.0,99193.0,0.15]
[1737966276087,0.5372417,99202.0,99192.0,0.15]
[1737966276299,0.5372417,99202.0,99195.0,0.15]
[1737966276493,0.5342417,99202.0,99196.0,0.151215]
[1737966276698,0.5342417,99202.0,99195.0,0.15]
[1737966276907,0.5342417,99202.0,99197.0,0.151214]
[1737966277360,0.53307068,99202.0,99197.0,0.151214]
[1737966277805,0.53407068,99202.0,99197.0,0.151214]
[1737966277979,0.53407068,99202.0,99194.0,0.15]
[1737966278185,0.53407068,99202.0,99198.0,0.151212]
[1737966278345,0.53307068,99202.0,99200.0,0.151209]
[1737966278547,0.53307068,99202.0,99201.0,0.151208]
[1737966278743,0.0011417,99202.0,99201.0,0.377308]
[1737966278996,0.0031417,99202.0,99201.0,0.377308]
[1737966279190,0.0011417,99202.0,99201.0,0.377308]
[1737966279606,0.0031417,99202.0,99201.0,0.377308]
[1737966279806,0.0011417,99202.0,99201.0,0.377308]
[1737966280063,0.0011417,99202.0,99201.0,0.301208]
[1737966280277,0.0011417,99202.0,99201.0,0.303208]
[1737966280450,0.0011417,99202.0,99201.0,0.31311358]
[1737966280675,0.0001417,99202.0,99201.0,0.31311358]
[1737966280851,0.0011417,99202.0,99201.0,0.31311358]
[1737966281241,0.0011417,99202.0,99201.0,0.152]
[1737966281443,0.0001417,99202.0,99189.0,0.0099766]
[1737966281609,0.151209,99201.0,99189.0,0.0099766]
[1737966281799,0.0001417,99202.0,99201.0,0.002]
[1737966282005,0.151215,99197.0,99190.0,0.15]
[1737966282215,0.2017507,99202.0,99190.0,0.15]
[1737966282460,0.151218,99195.0,99185.0,0.01077185]
[1737966282709,0.0001417,99202.0,99185.0,0.01077185]
[1737966282710,0.151208,99201.0,99191.0,0.151222]
[1737966282882,0.1513477,99202.0,99187.0,0.201639]
[1737966283109,0.0001417,99202.0,99196.0,0.151215]
[1737966283281,0.0001417,99202.0,99201.0,0.151208]
[1737966283605,0.0021417,99202.0,99201.0,0.151208]
[1737966284044,0.0021417,99202.0,99201.0,0.301208]
[1737966284241,0.0021417,99202.0,99201.0,0.49765529]
[1737966284854,0.0001417,99202.0,99201.0,1.11971929]
[1737966285418,0.0001417,99202.0,99201.0,0.49765529]
[1737966285646,0.0001417,99202.0,99201.0,0.70691929]
[1737966285850,0.0001417,99202.0,99201.0,0.49965529]
[1737966286046,0.0001417,99202.0,99201.0,0.49765529]
[1737966286479,0.0001417,99202.0,99201.0,0.50565529]
[1737966286671,0.0001417,99202.0,99201.0,0.49765529]
[1737966287093,4.821e-05,99202.0,99201.0,0.49765529]
[1737966287425,4.821e-05,99202.0,99201.0,0.47765529]
[1737966287608,4.821e-05,99202.0,99201.0,0.40155529]
[1737966287815,4.821e-05,99202.0,99201.0,0.301208]
[1737966288041,4.821e-05,99202.0,99201.0,0.309208]
[1737966288242,4.821e-05,99202.0,99201.0,0.304208]
[1737966288650,4.821e-05,99202.0,99201.0,0.312208]
[1737966288766,4.821e-05,99202.0,99201.0,0.301208]
[1737966289183,4.821e-05,99202.0,99201.0,0.307208]
[1737966289616,4.821e-05,99202.0,99201.0,0.186]
[1737966289856,4.821e-05,99202.0,99201.0,0.036]
[1737966290275,4.821e-05,99202.0,99201.0,0.038]
[1737966290691,4.821e-05,99202.0,99201.0,0.036]
[1737966291153,4.821e-05,99202.0,99201.0,0.03]
[1737966291369,4.821e-05,99202.0,99201.0,0.035]